fUSD/lending_fUSD_20260620
["ID","MTS","AMOUNT","RATE_DAILY","PERIOD"]
[425791624,1781893832000,-160.0,0.0001723,2]
[425791628,1781893832000,-441.69610347,0.00017378,2]
[425791610,1781893832000,-151.0,0.00017191,2]
[425791619,1781893832000,-314.0,0.00017196,2]
[425791621,1781893832000,-150.1,0.00017213,2]
[425791625,1781893832000,-300.0,0.00017306,7]
[425791618,1781893832000,-310.0,0.00017192,2]
[425791615,1781893832000,-153.0,0.00017191,2]
[425791617,1781893832000,-309.0,0.00017191,2]
[425791616,1781893832000,-317.0,0.00017191,2]
[425791620,1781893832000,-160.0,0.00017208,2]
[425791598,1781893832000,-318.0,0.00017191,2]
[425791664,1781893833000,-58714.91894414,0.00019597,2]
[425791654,1781893833000,-282.0,0.00019452,2]
[425791656,1781893833000,-1389.90908831,0.00019497,2]
[425791665,1781893833000,-75579.26315241,0.00019597,2]
[425791655,1781893833000,-189.07949596,0.0001948,2]
[425791657,1781893833000,-8853.41512862,0.00019497,2]
[425791660,1781893833000,-57195.3066011,0.00019562,2]
[425791661,1781893833000,-233.8132839,0.0001958,2]
[425791659,1781893833000,-1672.7364795,0.00019557,2]
[425791662,1781893833000,-394.25461245,0.00019596,2]
[425791663,1781893833000,-56.17829124,0.00019597,2]
[425791658,1781893833000,-167.8579423,0.00019548,2]
[425791707,1781893838000,-193.35805194,0.0002061,2]
[425791705,1781893838000,-157.51,0.00020422,2]
[425791703,1781893838000,-660.32,0.00020284,2]
[425791706,1781893838000,-500.0,0.00020493,2]
[425791710,1781893838000,-169.92,0.00020794,2]
[425791700,1781893838000,-588.82,0.00020284,2]
[425791709,1781893838000,-8853.41512862,0.00020667,2]
[425791696,1781893838000,-155.0,0.0002,2]
[425791698,1781893838000,-1734.62772924,0.00020105,2]
[425791701,1781893838000,-604.25,0.00020284,2]
[425791702,1781893838000,-656.86,0.00020284,2]
[425791711,1781893838000,-169.92,0.00020794,2]
[425791704,1781893838000,-528.93,0.00020284,2]
[425791697,1781893838000,-4350.78,0.0002,2]
[425791712,1781893838000,-10794.222616,0.00020818,2]
[425791715,1781893838000,-586.12,0.00020893,2]
[425791719,1781893838000,-162.0,0.00021,2]
[425791722,1781893838000,-911.0,0.00021,2]
[425791717,1781893838000,-640.51,0.00020893,2]
[425791714,1781893838000,-716.03,0.00020893,2]
[425791713,1781893838000,-224.0,0.00020821,2]
[425791716,1781893838000,-637.16,0.00020893,2]
[425791720,1781893838000,-153.0,0.00021,2]
[425791718,1781893838000,-197.0,0.00021,2]
[425791708,1781893838000,-1798.80895522,0.00020653,2]
[425791695,1781893838000,-502.0,0.0002,2]
[425791693,1781893838000,-153.0,0.0002,2]
[425791692,1781893838000,-409.0,0.0002,2]
[425791721,1781893838000,-641.0,0.00021,2]
[425791671,1781893838000,-99432.46766356,0.00019597,2]
[425791670,1781893838000,-4007.09066225,0.00019597,2]
[425791674,1781893838000,-500.0,0.00019691,2]
[425791675,1781893838000,-3602.7971334,0.00019758,2]
[425791673,1781893838000,-10794.22261604,0.00019667,2]
[425791672,1781893838000,-2996.0390124,0.00019597,2]
[425791676,1781893838000,-4730.0496116,0.00019758,2]
[425791678,1781893838000,-232.72,0.00019771,2]
[425791680,1781893838000,-1262.0284132,0.00019866,2]
[425791688,1781893838000,-641.0,0.0002,2]
[425791694,1781893838000,-180.0,0.0002,2]
[425791681,1781893838000,-93481.2641327,0.00019866,2]
[425791677,1781893838000,-151.0,0.00019767,2]
[425791683,1781893838000,-170.09,0.00019866,2]
[425791679,1781893838000,-500.0,0.00019863,2]
[425791685,1781893838000,-197.0,0.0002,2]
[425791684,1781893838000,-160.0,0.0001988,2]
[425791687,1781893838000,-153.0,0.0002,2]
[425791686,1781893838000,-162.0,0.0002,2]
[425791689,1781893838000,-911.0,0.0002,2]
[425791699,1781893838000,-738.18,0.00020284,2]
[425791690,1781893838000,-164.0,0.0002,2]
[425791691,1781893838000,-154.0,0.0002,2]
[425791682,1781893838000,-91514.8318371,0.00019866,2]
[425791724,1781893838000,-154.0,0.00021,2]
[425791727,1781893838000,-180.0,0.00021,2]
[425791734,1781893838000,-620.69,0.00021501,2]
[425791757,1781893838000,-500.0,0.00021999,2]
[425791754,1781893838000,-10794.222616,0.0002197,2]
[425791756,1781893838000,-540.71050534,0.00021999,2]
[425791758,1781893838000,-500.0,0.00021999,2]
[425791755,1781893838000,-200.0,0.00021997,2]
[425791760,1781893838000,-500.0,0.00021999,2]
[425791762,1781893838000,-500.0,0.00022,3]
[425791763,1781893838000,-500.0,0.00022,3]
[425791761,1781893838000,-500.0,0.00021999,2]
[425791764,1781893838000,-500.0,0.00022,3]
[425791771,1781893838000,-164.0,0.00022,2]
[425791750,1781893838000,-5000.0,0.00021918,2]
[425791766,1781893838000,-197.0,0.00022,2]
[425791770,1781893838000,-911.0,0.00022,2]
[425791765,1781893838000,-288837.42290524,0.00022,4]
[425791768,1781893838000,-153.0,0.00022,2]
[425791767,1781893838000,-162.0,0.00022,2]
[425791772,1781893838000,-154.0,0.00022,2]
[425791773,1781893838000,-409.0,0.00022,2]
[425791774,1781893838000,-153.0,0.00022,2]
[425791776,1781893838000,-502.0,0.00022,2]
[425791775,1781893838000,-180.0,0.00022,2]
[425791778,1781893838000,-1072.16,0.00022,2]
[425791733,1781893838000,-617.45,0.00021501,2]
[425791769,1781893838000,-641.0,0.00022,2]
[425791748,1781893838000,-218.67099295,0.000219,2]
[425791777,1781893838000,-155.0,0.00022,2]
[425791753,1781893838000,-200.0,0.00021918,2]
[425791723,1781893838000,-164.0,0.00021,2]
[425791729,1781893838000,-155.0,0.00021,2]
[425791725,1781893838000,-409.0,0.00021,2]
[425791730,1781893838000,-1865.36488656,0.00021201,2]
[425791732,1781893838000,-184.07,0.00021324,2]
[425791779,1781893838000,-200.0,0.00022197,2]
[425791728,1781893838000,-502.0,0.00021,2]
[425791751,1781893838000,-167.66,0.00021918,2]
[425791731,1781893838000,-250.0,0.00021273,2]
[425791735,1781893838000,-274.226415,0.0002156,2]
[425791737,1781893838000,-3947.89,0.00021625,2]
[425791739,1781893838000,-8955.642818,0.00021681,7]
[425791726,1781893838000,-153.0,0.00021,2]
[425791741,1781893838000,-8853.41512862,0.00021838,2]
[425791752,1781893838000,-200.0,0.00021918,2]
[425791738,1781893838000,-3393.55404575,0.00021681,7]
[425791759,1781893838000,-500.0,0.00021999,2]
[425791749,1781893838000,-436.03212141,0.000219,2]
[425791747,1781893838000,-292.0,0.000219,7]
[425791742,1781893838000,-1389.90908825,0.00021887,2]
[425791745,1781893838000,-900.0,0.000219,7]
[425791746,1781893838000,-104981.5173,0.000219,2]
[425791740,1781893838000,-1934.38338736,0.00021749,2]
[425791736,1781893838000,-500.0,0.00021589,2]
[425791744,1781893838000,-500.0,0.00021899,2]
[425791743,1781893838000,-595.0,0.00021899,2]
[425791810,1781893839000,-500.0,0.00022845,2]
[425791819,1781893839000,-641.0,0.00023,2]
[425791815,1781893839000,-2395.18469087,0.00023,2]
[425791813,1781893839000,-200.0,0.00022955,2]
[425791806,1781893839000,-500.0,0.00022845,2]
[425791811,1781893839000,-151.0,0.00022845,2]
[425791814,1781893839000,-500.0,0.00022986,2]
[425791808,1781893839000,-500.0,0.00022845,2]
[425791809,1781893839000,-151.0,0.00022845,2]
[425791812,1781893839000,-500.0,0.00022845,2]
[425791817,1781893839000,-162.0,0.00023,2]
[425791829,1781893839000,-10794.222616,0.00023121,2]
[425791820,1781893839000,-911.0,0.00023,2]
[425791826,1781893839000,-502.0,0.00023,2]
[425791823,1781893839000,-409.0,0.00023,2]
[425791822,1781893839000,-154.0,0.00023,2]
[425791818,1781893839000,-169.0,0.00023,2]
[425791816,1781893839000,-197.0,0.00023,2]
[425791825,1781893839000,-180.0,0.00023,2]
[425791821,1781893839000,-164.0,0.00023,2]
[425791828,1781893839000,-8853.41512862,0.00023008,2]
[425791838,1781893839000,-2157.14243826,0.00023393,2]
[425791807,1781893839000,-151.0,0.00022845,2]
[425791824,1781893839000,-153.0,0.00023,2]
[425791805,1781893839000,-500.0,0.00022845,2]
[425791792,1781893839000,-500.0,0.00022845,2]
[425791803,1781893839000,-500.0,0.00022845,2]
[425791839,1781893839000,-184.07,0.00023456,2]
[425791790,1781893839000,-2080.17592889,0.00022845,2]
[425791782,1781893839000,-376.03,0.00022466,2]
[425791787,1781893839000,-151.0,0.00022845,2]
[425791788,1781893839000,-193.63627161,0.00022845,2]
[425791783,1781893839000,-500.48,0.00022466,2]
[425791789,1781893839000,-200.0,0.00022845,2]
[425791786,1781893839000,-151.0,0.00022845,2]
[425791780,1781893839000,-200.0,0.00022217,2]
[425791785,1781893839000,-514.75,0.00022807,2]
[425791781,1781893839000,-2005.9555727,0.00022297,2]
[425791784,1781893839000,-193.35805194,0.0002261,2]
[425791791,1781893839000,-151.0,0.00022845,2]
[425791793,1781893839000,-151.0,0.00022845,2]
[425791794,1781893839000,-500.0,0.00022845,2]
[425791800,1781893839000,-151.0,0.00022845,2]
[425791802,1781893839000,-151.0,0.00022845,2]
[425791797,1781893839000,-151.0,0.00022845,2]
[425791798,1781893839000,-151.0,0.00022845,2]
[425791801,1781893839000,-500.0,0.00022845,2]
[425791795,1781893839000,-151.0,0.00022845,2]
[425791799,1781893839000,-500.0,0.00022845,2]
[425791796,1781893839000,-500.0,0.00022845,2]
[425791804,1781893839000,-151.0,0.00022845,2]
[425791830,1781893839000,-262.160954,0.00023187,2]
[425791827,1781893839000,-155.0,0.00023,2]
[425791874,1781893839000,-151.0,0.00024489,2]
[425791867,1781893839000,-10794.222616,0.00024273,2]
[425791866,1781893839000,-15798.81547721,0.00024181,7]
[425791861,1781893839000,-4269.92,0.00024174,2]
[425791864,1781893839000,-1363.82,0.00024174,2]
[425791865,1781893839000,-8853.41512862,0.00024178,2]
[425791868,1781893839000,-1389.90908825,0.00024277,2]
[425791869,1781893839000,-151.0,0.00024324,2]
[425791870,1781893839000,-150.0,0.00024333,2]
[425791871,1781893839000,-269.29139067,0.0002441,2]
[425791878,1781893839000,-354.32294465,0.00024639,2]
[425791877,1781893839000,-410.0,0.00024575,2]
[425791873,1781893839000,-200.0,0.0002447,2]
[425791879,1781893839000,-250.0,0.00024658,4]
[425791872,1781893839000,-500.0,0.0002441,2]
[425791875,1781893839000,-200.0,0.00024489,2]
[425791876,1781893839000,-2319.72410669,0.00024489,2]
[425791881,1781893839000,-714.58,0.00024658,2]
[425791882,1781893839000,-23634.08308881,0.00024681,7]
[425791884,1781893839000,-2700.0,0.000249,9]
[425791883,1781893839000,-31977.7524,0.00024681,7]
[425791880,1781893839000,-1000.0,0.00024658,2]
[425791832,1781893839000,-262.160954,0.00023187,2]
[425791885,1781893839000,-490.0,0.000249,3]
[425791863,1781893839000,-6628.5,0.00024174,2]
[425791860,1781893839000,-280.72,0.00024174,2]
[425791862,1781893839000,-83347.0,0.00024174,2]
[425791857,1781893839000,-180.0,0.00024,2]
[425791831,1781893839000,-262.160954,0.00023187,2]
[425791834,1781893839000,-151.0,0.00023187,2]
[425791833,1781893839000,-262.160954,0.00023187,2]
[425791837,1781893839000,-200.0,0.00023393,2]
[425791835,1781893839000,-250.0,0.00023288,2]
[425791836,1781893839000,-151.0,0.00023393,2]
[425791840,1781893839000,-200.0,0.00023713,2]
[425791843,1781893839000,-9647.4053,0.0002393,2]
[425791856,1781893839000,-169.0,0.00024,2]
[425791842,1781893839000,-1800.0,0.000239,8]
[425791849,1781893839000,-197.0,0.00024,2]
[425791841,1781893839000,-481.81,0.00023891,2]
[425791850,1781893839000,-162.0,0.00024,2]
[425791845,1781893839000,-200.0,0.00023941,2]
[425791847,1781893839000,-500.0,0.00023999,2]
[425791846,1781893839000,-2236.95670847,0.00023941,2]
[425791848,1781893839000,-35000.0,0.00024,2]
[425791851,1781893839000,-641.0,0.00024,2]
[425791858,1781893839000,-502.0,0.00024,2]
[425791852,1781893839000,-911.0,0.00024,2]
[425791859,1781893839000,-165.91280991,0.00024,2]
[425791853,1781893839000,-164.0,0.00024,2]
[425791844,1781893839000,-151.0,0.00023941,2]
[425791854,1781893839000,-154.0,0.00024,2]
[425791855,1781893839000,-409.0,0.00024,2]
[425791947,1781893840000,-200.0,0.00025228,2]
[425791944,1781893840000,-2405.55389863,0.00025037,2]
[425791942,1781893840000,-151.0,0.00025037,2]
[425791945,1781893840000,-232.14923379,0.00025176,4]
[425791941,1781893840000,-151.0,0.00025,2]
[425791951,1781893840000,-313.18133806,0.00025417,2]
[425791946,1781893840000,-191.69,0.00025185,7]
[425791948,1781893840000,-202.18,0.000253,7]
[425791939,1781893840000,-262.160954,0.00025,2]
[425791943,1781893840000,-200.0,0.00025037,2]
[425791949,1781893840000,-8853.41512862,0.00025349,2]
[425791954,1781893840000,-500.0,0.00025581,2]
[425791964,1781893840000,-500.0,0.00025581,2]
[425791952,1781893840000,-10794.222616,0.00025424,2]
[425791953,1781893840000,-188.0,0.00025479,10]
[425791960,1781893840000,-500.0,0.00025581,2]
[425791962,1781893840000,-500.0,0.00025581,2]
[425791961,1781893840000,-500.0,0.00025581,2]
[425791957,1781893840000,-500.0,0.00025581,2]
[425791955,1781893840000,-500.0,0.00025581,2]
[425791959,1781893840000,-500.0,0.00025581,2]
[425791958,1781893840000,-500.0,0.00025581,2]
[425791965,1781893840000,-352.35478088,0.00025581,2]
[425791975,1781893840000,-150.0,0.00025738,30]
[425791950,1781893840000,-206.0,0.00025416,2]
[425791963,1781893840000,-500.0,0.00025581,2]
[425791940,1781893840000,-262.160954,0.00025,2]
[425791893,1781893840000,-500.0,0.00024999,2]
[425791938,1781893840000,-423.79,0.00025,2]
[425791891,1781893840000,-500.0,0.00024999,2]
[425791895,1781893840000,-150.0,0.00024999,20]
[425791887,1781893840000,-3441.60557287,0.000249,2]
[425791889,1781893840000,-500.0,0.00024999,2]
[425791899,1781893840000,-7260.25459381,0.00025,2]
[425791897,1781893840000,-29465.57916623,0.00025,60]
[425791901,1781893840000,-906.1511741,0.00025,2]
[425791910,1781893840000,-172.61665144,0.00025,2]
[425791912,1781893840000,-645.54216288,0.00025,2]
[425791907,1781893840000,-202.98534359,0.00025,2]
[425791905,1781893840000,-1005.96241815,0.00025,2]
[425791914,1781893840000,-920.78178537,0.00025,2]
[425791937,1781893840000,-423.79,0.00025,2]
[425791903,1781893840000,-903289.28758525,0.00025,2]
[425791921,1781893840000,-162.0,0.00025,2]
[425791918,1781893840000,-168.01277686,0.00025,2]
[425791924,1781893840000,-184.0,0.00025,2]
[425791922,1781893840000,-423.63522273,0.00025,2]
[425791932,1781893840000,-423.79,0.00025,2]
[425791927,1781893840000,-520.81610853,0.00025,2]
[425791930,1781893840000,-423.79,0.00025,2]
[425791928,1781893840000,-262.160954,0.00025,2]
[425791933,1781893840000,-262.160954,0.00025,2]
[425791936,1781893840000,-423.79,0.00025,2]
[425791934,1781893840000,-423.79,0.00025,2]
[425791935,1781893840000,-423.79,0.00025,2]
[425791916,1781893840000,-198.0,0.00025,2]
[425791966,1781893840000,-150.0,0.00025581,2]
[425791956,1781893840000,-500.0,0.00025581,2]
[425791967,1781893840000,-151.0,0.00025585,2]
[425792004,1781893840000,-262.160954,0.00026133,2]
[425792006,1781893840000,-262.160954,0.00026133,2]
[425792007,1781893840000,-151.0,0.00026133,2]
[425792008,1781893840000,-151.0,0.00026133,2]
[425792005,1781893840000,-262.160954,0.00026133,2]
[425792009,1781893840000,-2586.85809042,0.00026133,2]
[425792010,1781893840000,-200.0,0.00026133,2]
[425792014,1781893840000,-400.493262,0.00026509,2]
[425792011,1781893840000,-151.0,0.00026296,2]
[425792013,1781893840000,-166.48403506,0.00026501,4]
[425792012,1781893840000,-28026.98738661,0.000264,2]
[425792015,1781893840000,-490.344823,0.00026509,2]
[425792016,1781893840000,-496.980601,0.00026514,2]
[425792019,1781893840000,-8853.41512862,0.00026519,2]
[425792018,1781893840000,-248.0,0.00026516,5]
[425792020,1781893840000,-285.0,0.00026548,7]
[425792025,1781893840000,-200.0,0.00026681,2]
[425792024,1781893840000,-2682.57183977,0.00026681,2]
[425792021,1781893840000,-10794.222616,0.00026576,2]
[425792017,1781893840000,-373.668542,0.00026514,2]
[425792022,1781893840000,-1389.90908825,0.00026667,2]
[425792023,1781893840000,-151.0,0.00026681,2]
[425792026,1781893840000,-200.0,0.00026743,2]
[425792028,1781893840000,-250.0,0.00027,2]
[425792029,1781893840000,-2000.0,0.00027,14]
[425791996,1781893840000,-612.49742787,0.0002599,2]
[425791998,1781893840000,-4610.18082744,0.00026,2]
[425792027,1781893840000,-219.7,0.000269,7]
[425791999,1781893840000,-220.60543849,0.00026,2]
[425792000,1781893840000,-219.7,0.00026,7]
[425791971,1781893840000,-5528.0,0.000256,5]
[425791969,1781893840000,-2494.55939288,0.00025585,2]
[425791972,1781893840000,-2996.0390124,0.00025681,2]
[425791973,1781893840000,-500.0,0.0002571,2]
[425791974,1781893840000,-600.0,0.00025738,2]
[425791970,1781893840000,-184.07,0.00025589,2]
[425791976,1781893840000,-280.72,0.00025786,2]
[425791979,1781893840000,-6628.5,0.00025786,2]
[425791978,1781893840000,-83347.0,0.00025786,2]
[425791983,1781893840000,-4730.0496116,0.00025797,2]
[425791989,1781893840000,-3602.7971334,0.0002583,2]
[425791977,1781893840000,-4269.92,0.00025786,2]
[425791968,1781893840000,-200.0,0.00025585,2]
[425791980,1781893840000,-1363.82,0.00025786,2]
[425791997,1781893840000,-861.71462341,0.00025993,2]
[425791994,1781893840000,-91514.8318371,0.00025902,2]
[425791993,1781893840000,-93481.2641327,0.00025902,2]
[425791995,1781893840000,-200.0,0.00025985,2]
[425791985,1781893840000,-182.48307287,0.00025802,2]
[425792001,1781893840000,-160.0,0.00026027,2]
[425791991,1781893840000,-3600.0,0.000259,9]
[425792003,1781893840000,-262.160954,0.00026133,2]
[425791992,1781893840000,-1262.0284132,0.00025902,2]
[425791990,1781893840000,-353.03021611,0.0002589,2]
[425791988,1781893840000,-207.58,0.00025817,2]
[425791981,1781893840000,-423.79,0.0002579,2]
[425792002,1781893840000,-250.0,0.00026027,6]
[425792066,1781893841000,-200.0,0.000275,2]
[425792064,1781893841000,-205.22818764,0.000275,2]
[425792063,1781893841000,-166.94,0.000274,7]
[425792074,1781893841000,-837.12876965,0.000279,2]
[425792058,1781893841000,-178.821392,0.00027397,2]
[425792073,1781893841000,-1060.39685108,0.000279,2]
[425792071,1781893841000,-2884.75459676,0.00027777,2]
[425792062,1781893841000,-250.0,0.00027397,8]
[425792059,1781893841000,-178.821392,0.00027397,2]
[425792072,1781893841000,-200.0,0.00027777,2]
[425792065,1781893841000,-500.0,0.000275,7]
[425792082,1781893841000,-113490.7126509,0.00028,2]
[425792068,1781893841000,-8853.41512862,0.00027689,2]
[425792069,1781893841000,-394.0,0.00027729,7]
[425792067,1781893841000,-372.0,0.00027576,5]
[425792075,1781893841000,-1059.53401356,0.000279,2]
[425792056,1781893841000,-178.821392,0.00027397,2]
[425792076,1781893841000,-910.44643468,0.000279,2]
[425792080,1781893841000,-1875.83401337,0.000279,2]
[425792083,1781893841000,-160.0,0.00028,2]
[425792077,1781893841000,-466.35857625,0.000279,2]
[425792081,1781893841000,-219.7,0.000279,7]
[425792086,1781893841000,-178.821392,0.00028,7]
[425792085,1781893841000,-5118.0604031,0.00028,2]
[425792078,1781893841000,-3809.35462393,0.000279,2]
[425792070,1781893841000,-277.81817141,0.00027777,2]
[425792057,1781893841000,-178.821392,0.00027397,2]
[425792053,1781893841000,-178.821392,0.00027397,2]
[425792052,1781893841000,-178.821392,0.00027397,2]
[425792079,1781893841000,-601.80612674,0.000279,2]
[425792031,1781893841000,-530.0,0.00027,2]
[425792030,1781893841000,-1055.67276494,0.00027,2]
[425792032,1781893841000,-509.0,0.00027137,2]
[425792036,1781893841000,-354.32294463,0.00027335,2]
[425792035,1781893841000,-200.0,0.00027229,2]
[425792034,1781893841000,-2781.82699784,0.00027229,2]
[425792033,1781893841000,-151.0,0.00027229,2]
[425792038,1781893841000,-4195.60009342,0.0002739,2]
[425792039,1781893841000,-8288.99778684,0.0002739,2]
[425792040,1781893841000,-500.0,0.00027396,2]
[425792048,1781893841000,-178.821392,0.00027397,2]
[425792037,1781893841000,-423.79,0.00027387,2]
[425792041,1781893841000,-498.68846969,0.00027397,2]
[425792042,1781893841000,-1500.0,0.00027397,2]
[425792045,1781893841000,-3092.81,0.00027397,2]
[425792044,1781893841000,-1474.08,0.00027397,2]
[425792046,1781893841000,-530.0,0.00027397,2]
[425792047,1781893841000,-300.0,0.00027397,2]
[425792049,1781893841000,-178.821392,0.00027397,2]
[425792054,1781893841000,-178.821392,0.00027397,2]
[425792051,1781893841000,-178.821392,0.00027397,2]
[425792050,1781893841000,-178.821392,0.00027397,2]
[425792061,1781893841000,-1000.0,0.00027397,20]
[425792055,1781893841000,-178.821392,0.00027397,2]
[425792060,1781893841000,-714.58,0.00027397,2]
[425792043,1781893841000,-637.69700445,0.00027397,2]
[425792084,1781893841000,-643.0,0.00028,2]
[425792100,1781893841000,-151.0,0.00028267,2]
[425792119,1781893841000,-861.71462341,0.00028536,2]
[425792118,1781893841000,-258.91109942,0.00028531,2]
[425792120,1781893841000,-332.12,0.00028629,30]
[425792124,1781893841000,-1295.64,0.00028632,30]
[425792121,1781893841000,-333.79,0.00028629,30]
[425792123,1781893841000,-832.92,0.00028631,30]
[425792122,1781893841000,-829.22,0.00028631,30]
[425792127,1781893841000,-396.49,0.00028634,2]
[425792126,1781893841000,-396.35,0.00028633,2]
[425792125,1781893841000,-1301.01,0.00028632,30]
[425792129,1781893841000,-367.75375393,0.00028658,2]
[425792130,1781893841000,-183.87687697,0.00028658,2]
[425792132,1781893841000,-317.44988533,0.00028661,2]
[425792131,1781893841000,-176.36104741,0.00028661,2]
[425792133,1781893841000,-396.35,0.00028664,7]
[425792134,1781893841000,-396.49,0.00028665,7]
[425792138,1781893841000,-837.12876965,0.000287,2]
[425792137,1781893841000,-1060.39685108,0.000287,2]
[425792136,1781893841000,-396.49,0.00028697,30]
[425792135,1781893841000,-396.35,0.00028696,30]
[425792139,1781893841000,-1059.53401356,0.000287,2]
[425792140,1781893841000,-910.44643468,0.000287,2]
[425792142,1781893841000,-3809.35462393,0.000287,2]
[425792141,1781893841000,-466.35857625,0.000287,2]
[425792088,1781893841000,-178.821392,0.00028,7]
[425792114,1781893841000,-601.80612674,0.000284,2]
[425792113,1781893841000,-3809.35462393,0.000284,2]
[425792128,1781893841000,-735.50750786,0.00028658,2]
[425792112,1781893841000,-466.35857625,0.000284,2]
[425792099,1781893841000,-1875.83401337,0.000282,2]
[425792115,1781893841000,-199.96658507,0.0002842,2]
[425792089,1781893841000,-178.821392,0.00028,7]
[425792091,1781893841000,-152.39364804,0.000282,2]
[425792087,1781893841000,-178.821392,0.00028,7]
[425792090,1781893841000,-500.0,0.00028199,7]
[425792098,1781893841000,-601.80612674,0.000282,2]
[425792092,1781893841000,-1060.39685108,0.000282,2]
[425792096,1781893841000,-466.35857625,0.000282,2]
[425792093,1781893841000,-837.12876965,0.000282,2]
[425792095,1781893841000,-910.44643468,0.000282,2]
[425792094,1781893841000,-1059.53401356,0.000282,2]
[425792101,1781893841000,-165.65595834,0.000283,2]
[425792097,1781893841000,-3809.35462393,0.000282,2]
[425792116,1781893841000,-1875.83401337,0.000285,2]
[425792109,1781893841000,-837.12876965,0.000284,2]
[425792104,1781893841000,-150.11070154,0.000283,2]
[425792111,1781893841000,-910.44643468,0.000284,2]
[425792117,1781893841000,-509.0,0.00028528,3]
[425792107,1781893841000,-200.0,0.00028325,2]
[425792110,1781893841000,-1059.53401356,0.000284,2]
[425792106,1781893841000,-2991.49051684,0.00028325,2]
[425792102,1781893841000,-165.65595832,0.000283,2]
[425792105,1781893841000,-1000.0,0.00028315,2]
[425792103,1781893841000,-165.65595832,0.000283,2]
[425792108,1781893841000,-1060.39685108,0.000284,2]
[425792180,1781893842000,-396.49,0.00028886,30]
[425792179,1781893842000,-396.35,0.00028885,30]
[425792181,1781893842000,-199.8973951,0.00028889,2]
[425792178,1781893842000,-262.160954,0.0002888,7]
[425792182,1781893842000,-200.0,0.000289,2]
[425792171,1781893842000,-200.0,0.00028873,2]
[425792186,1781893842000,-200.96475655,0.00028917,2]
[425792176,1781893842000,-262.160954,0.0002888,7]
[425792172,1781893842000,-386.43447673,0.00028876,2]
[425792183,1781893842000,-200.0,0.000289,2]
[425792175,1781893842000,-262.160954,0.0002888,7]
[425792177,1781893842000,-262.160954,0.0002888,7]
[425792196,1781893842000,-153.0,0.00028938,30]
[425792185,1781893842000,-396.49,0.00028917,2]
[425792187,1781893842000,-396.35,0.00028917,2]
[425792190,1781893842000,-153.0,0.00028938,30]
[425792189,1781893842000,-162.0,0.00028938,30]
[425792188,1781893842000,-197.0,0.00028938,30]
[425792191,1781893842000,-641.0,0.00028938,30]
[425792193,1781893842000,-164.0,0.00028938,30]
[425792192,1781893842000,-911.0,0.00028938,30]
[425792197,1781893842000,-180.0,0.00028938,30]
[425792194,1781893842000,-154.0,0.00028938,30]
[425792195,1781893842000,-409.0,0.00028938,30]
[425792170,1781893842000,-8853.41512862,0.0002886,2]
[425792184,1781893842000,-497.0,0.00028902,5]
[425792168,1781893842000,-396.49,0.00028854,7]
[425792143,1781893842000,-601.80612674,0.000287,2]
[425792173,1781893842000,-153.93305952,0.00028876,2]
[425792144,1781893842000,-166.94,0.000287,7]
[425792146,1781893842000,-219.7,0.000287,7]